bitfinex-derivatives/quotes_ETHF0:USTF0_20240922
["timestamp","ask_amount","ask_price","bid_price","bid_amount"]
[1726965742157,3.39921,2611.8,2611.2,0.19145]
[1726965742366,3.39921,2611.8,2611.3,0.19144]
[1726965742367,3.2078,2611.8,2611.3,0.19144]
[1726965743959,3.1064,2611.9,2611.3,0.19144]
[1726965744756,3.2078,2611.8,2611.3,0.19144]
[1726965745065,2.99,2611.5,2610.9,4.102]
[1726965745255,1.1491,2611.4,2610.9,0.19147]
[1726965745958,1.1491,2611.4,2611.0,0.19146]
[1726965746855,1.1491,2611.4,2611.0,3.2078]
[1726965747061,3.2078,2611.1,2610.6,0.19149]
[1726965747257,2.99,2611.0,2610.6,0.19149]
[1726965747460,2.99,2611.0,2610.4,3.2078]
[1726965747658,0.3704,2610.9,2610.4,3.2078]
[1726965747859,0.3896,2610.8,2610.5,0.1915]
[1726965748562,0.3896,2610.8,2610.4,3.2078]
[1726965748770,0.3896,2610.8,2610.6,0.19149]
[1726965750270,0.3896,2610.8,2610.7,3.2078]
[1726965751361,0.3896,2610.8,2610.6,0.19149]
[1726965751864,0.3896,2610.8,2610.4,3.2078]
[1726965752365,0.3896,2610.8,2610.6,0.19149]
[1726965753162,3.2078,2612.0,2610.7,10.50692]
[1726965753359,4.123,2612.4,2611.8,0.1914]
[1726965753360,0.55687,2612.3,2611.8,0.1914]
[1726965753563,0.97704028,2612.3,2611.6,3.2078]
[1726965753758,0.97704028,2612.3,2612.0,0.19139]
[1726965753963,0.97704028,2612.3,2611.5,3.2078]
[1726965753964,0.97704028,2612.3,2611.5,3.5822]
[1726965754169,0.97704028,2612.3,2611.8,0.1914]
[1726965754374,0.7892,2612.3,2611.5,3.5822]
[1726965754573,0.7892,2612.3,2611.8,0.1914]
[1726965754765,0.7892,2612.3,2611.9,0.1914]
[1726965755665,0.7892,2612.3,2611.5,3.5822]
[1726965756569,0.7892,2612.3,2611.8,0.1914]
[1726965756570,0.98057,2612.3,2611.8,0.1914]
[1726965757961,0.7892,2612.3,2611.8,0.1914]
[1726965758365,0.98057,2612.3,2611.8,0.1914]
[1726965758561,0.7892,2612.3,2611.8,0.1914]
[1726965758769,0.7892,2612.3,2611.9,0.1914]
[1726965759670,0.7892,2612.3,2611.8,0.1914]
[1726965760062,0.98057,2612.3,2611.7,0.19141]
[1726965760266,0.7892,2612.3,2611.5,3.5822]
[1726965760683,0.7892,2612.3,2611.8,0.1914]
[1726965761476,0.7892,2612.3,2611.5,3.5822]
[1726965761477,3.2078,2612.1,2611.5,3.5822]
[1726965761670,6.1978,2612.1,2611.5,3.5822]
[1726965761886,3.2078,2611.8,2611.5,0.56582]
[1726965762073,0.3824,2611.7,2611.5,0.56582]
[1726965762578,0.3824,2611.7,2611.6,0.19142]
[1726965763080,0.3824,2611.7,2611.3,0.7622]
[1726965763081,0.3824,2611.7,2611.3,0.3933]
[1726965763288,4.16442,2611.7,2611.3,0.3933]
[1726965763584,4.16442,2611.7,2611.1,3.39926]
[1726965764075,4.16442,2611.7,2611.1,3.2078]
[1726965764271,3.973,2611.7,2611.1,0.19145]
[1726965765277,4.16442,2611.7,2611.1,0.19145]
[1726965768479,6.642831,2611.7,2611.1,0.19145]
[1726965769179,3.243611,2611.7,2611.2,6.1978]
[1726965769381,0.3824,2611.7,2611.4,0.19143]
[1726965770076,2.478411,2611.7,2611.5,0.19142]
[1726965770278,2.478411,2611.7,2611.2,6.1978]
[1726965770279,2.478411,2611.9,2611.7,0.19141]
[1726965770477,6.1148,2612.0,2611.7,0.19141]
[1726965770881,3.2078,2612.0,2611.7,0.3687]
[1726965771187,3.2078,2612.0,2611.8,0.5552]
[1726965771574,3.2078,2612.0,2611.8,1.54953552]
[1726965772285,3.2078,2612.0,2611.8,1.35813552]
[1726965772477,3.2078,2612.0,2611.8,0.3638]
[1726965774907,3.2078,2612.0,2611.8,1.35813552]
[1726965775190,3.2078,2612.0,2611.7,2.05474012]
[1726965775191,3.2078,2612.0,2611.7,1.36303552]
[1726965776086,3.2078,2612.0,2611.7,0.99433552]
[1726965776280,0.3801,2611.9,2611.5,0.99433552]
[1726965776982,0.3801,2611.9,2611.6,0.99433552]
[1726965777476,0.3801,2611.9,2611.4,1.89493012]
[1726965777477,2.478411,2611.7,2611.4,2.08636012]
[1726965777683,2.478411,2611.7,2611.4,0.59173]
[1726965779293,2.478411,2611.7,2611.4,0.4003]
[1726965779930,0.767,2611.6,2611.4,0.4003]
[1726965780688,2.669841,2611.5,2611.1,3.2078]
[1726965780892,2.49881702,2611.3,2610.8,0.7437]
[1726965781098,2.49881702,2611.2,2610.8,0.7437]
[1726965781390,2.49881702,2611.1,2610.8,0.7437]
[1726965781604,6.08251702,2611.0,2610.4,7.6935]
[1726965781890,2.49881702,2610.9,2610.5,0.1915]
[1726965782094,3.5837,2611.0,2610.5,0.1915]
[1726965782095,2.87471702,2611.0,2610.5,0.1915]
[1726965782294,2.87471702,2611.0,2610.6,0.19149]
[1726965782989,2.87471702,2611.0,2610.6,3.39929]
[1726965782990,0.3759,2611.0,2610.6,3.39929]
[1726965783291,0.3936,2611.1,2610.8,0.19148]
[1726965783490,0.3936,2611.1,2610.7,3.39928]
[1726965783694,3.6014,2611.1,2610.6,3.39929]
[1726965783892,2.69028702,2611.0,2610.4,5.4193]
[1726965784192,2.69028702,2610.9,2610.4,0.7421]
[1726965784387,2.99,2611.0,2610.1,0.47763453]
[1726965784388,0.1915,2610.5,2610.1,0.47763453]
[1726965784582,0.7809,2610.4,2610.1,0.47763453]
[1726965787801,0.7809,2610.4,2610.0,0.19154]
[1726965788195,2.901,2610.6,2610.2,0.19152]
[1726965788396,3.09249,2610.7,2610.3,0.3823]
[1726965788998,2.901,2610.7,2610.3,0.3823]
[1726965790204,3.2078,2610.6,2610.3,0.3823]
[1726965790403,2.901,2610.7,2609.9,0.3748]
[1726965790593,3.2078,2610.6,2610.1,0.3823]
[1726965792195,6.1088,2610.6,2610.1,0.3823]
[1726965792598,6.1088,2610.6,2610.1,0.57383]
[1726965793008,6.1088,2610.6,2610.1,3.5901]
[1726965793302,3.2078,2610.6,2610.1,3.78163]
[1726965793610,3.2078,2610.6,2610.2,0.19152]
[1726965794905,3.09249,2610.7,2610.2,0.19152]
[1726965796696,0.19149,2610.7,2610.2,0.19152]
[1726965798604,0.19149,2610.6,2610.1,0.3823]
[1726965798808,0.19149,2610.7,2610.2,3.2078]
[1726965799808,7.03218,2610.8,2610.2,3.39932]
[1726965801007,0.19149,2610.7,2610.2,3.39932]
[1726965801502,7.03218,2610.8,2610.2,3.39932]
[1726965802808,4.13118,2610.8,2610.2,3.39932]
[1726965803003,7.03218,2610.8,2610.2,3.39932]
[1726965803207,3.9397,2610.8,2610.2,3.2078]
[1726965803403,6.1088,2611.1,2610.6,0.19149]
[1726965803612,6.30026,2611.1,2610.7,0.7595]
[1726965804418,3.39926,2611.1,2610.7,0.7595]
[1726965804611,6.30026,2611.1,2610.7,0.7595]
[1726965805117,0.19146,2611.0,2610.7,0.7595]
[1726965806310,3.2078,2611.1,2610.7,0.7595]
[1726965806512,0.7444,2611.2,2610.9,0.19147]
[1726965808707,0.7444,2611.2,2610.8,3.39927]
[1726965809910,0.7444,2611.2,2610.7,0.3771]
[1726965809911,0.93585,2611.2,2610.7,0.3771]
[1726965810115,0.7444,2611.2,2610.7,0.3771]
[1726965810614,0.7444,2611.2,2610.9,3.39927]
[1726965810813,0.7444,2611.2,2610.9,0.19147]
[1726965811813,0.93585,2611.2,2610.8,3.2078]
[1726965813908,0.93585,2611.2,2610.7,0.3771]
[1726965813909,3.2078,2611.1,2610.7,0.3771]
[1726965814214,0.19146,2611.0,2610.7,0.3771]
[1726965814415,0.57096,2611.1,2610.5,0.1915]
[1726965814608,0.57096,2611.1,2610.5,0.9766]
[1726965816321,0.19147,2611.0,2610.5,0.7851]
[1726965817927,0.19147,2610.9,2610.5,0.7851]
[1726965818129,0.3795,2611.1,2610.5,0.7851]
[1726965818130,0.19147,2611.0,2610.5,0.7851]
[1726965818326,0.3768,2610.8,2610.5,0.7851]
[1726965821533,0.3812,2610.7,2610.5,0.7851]
[1726965825249,0.3812,2610.7,2610.5,1.77943552]
[1726965828232,0.3812,2610.7,2610.5,1.37813552]
[1726965828428,0.3812,2610.7,2610.4,0.99433552]
[1726965828637,0.1915,2610.6,2610.4,0.99433552]
[1726965828826,0.1915,2610.6,2610.3,0.3637]
[1726965831531,3.3993,2610.6,2610.3,0.3637]
[1726965831930,0.1915,2610.5,2610.3,0.3637]
[1726965832239,0.1915,2610.5,2610.0,1.49463012]
[1726965832240,0.19151,2610.4,2610.0,0.99433552]
[1726965832540,0.59351,2610.4,2610.0,0.99433552]
[1726965832930,0.402,2610.4,2610.0,0.99433552]
[1726965833732,0.402,2610.4,2610.0,4.20213552]
[1726965833935,0.59351,2610.4,2610.0,4.20213552]
[1726965836732,0.402,2610.4,2610.0,0.99433552]
[1726965842232,0.59351,2610.4,2610.0,0.99433552]
[1726965842436,0.59351,2610.4,2609.9,2.75083552]
[1726965843644,0.59351,2610.4,2609.9,2.94237552]
[1726965844240,0.59351,2610.4,2609.9,2.75083552]
[1726965844438,0.59351,2610.4,2609.9,2.94237552]
[1726965844832,0.402,2610.4,2609.9,2.75083552]
[1726965845039,0.59351,2610.4,2609.9,2.94237552]
[1726965846254,0.402,2610.4,2609.9,2.75083552]
[1726965846447,0.3812,2610.7,2610.2,1.38]
[1726965846743,1.7649,2611.0,2610.4,1.38]
[1726965846744,3.44687,2611.0,2610.4,1.38]
[1726965846943,3.44687,2611.0,2610.5,0.1915]
[1726965847544,3.44687,2611.0,2610.4,2.37433552]
[1726965847545,3.2554,2611.0,2610.4,2.37433552]
[1726965847736,0.3684,2611.0,2610.7,0.19148]
[1726965847939,0.3684,2611.0,2610.8,0.7606]
[1726965848154,0.3684,2611.0,2610.8,1.31778]
[1726965848541,0.3684,2611.0,2610.8,1.1263]
[1726965850243,0.3684,2611.0,2610.8,1.31778]
[1726965850446,0.755,2611.3,2611.0,0.19146]
[1726965850447,0.3701,2611.3,2611.0,0.19146]
[1726965850648,0.3764,2611.4,2611.2,0.19145]
[1726965850844,0.3764,2611.4,2610.8,5.32843552]
[1726965850845,3.5842,2611.4,2611.1,0.19145]
[1726965851143,3.5842,2611.4,2611.0,0.19146]
[1726965851537,0.56784,2611.4,2610.8,5.32843552]
[1726965851742,3.77564,2611.4,2610.9,0.19147]
[1726965853253,3.2078,2611.4,2611.1,0.19146]
[1726965853455,2.49881702,2611.5,2611.1,0.19146]
[1726965853456,0.3792,2611.5,2611.2,0.3936]
[1726965853749,0.3792,2611.5,2611.3,0.3973]
[1726965854653,3.587,2611.5,2611.2,0.3936]
[1726965854959,6.08581702,2611.5,2610.9,0.98237]
[1726965855144,0.19144,2611.4,2610.9,0.98237]
[1726965855747,6.27724702,2611.5,2610.9,0.98237]
[1726965856153,3.77843,2611.5,2610.9,0.98237]
[1726965856359,0.19145,2611.3,2610.5,7.3098]
[1726965856555,0.3859,2611.2,2610.8,0.19147]
[1726965856959,0.3859,2611.2,2610.6,1.1574]
[1726965856960,0.3859,2611.2,2610.7,0.19148]
[1726965857155,0.3663,2611.1,2610.7,0.19148]
[1726965858561,0.3663,2611.1,2610.6,1.34889]
[1726965858762,0.55776,2611.1,2610.6,1.34889]
[1726965859156,0.3663,2611.1,2610.6,1.34889]
[1726965860463,0.3663,2611.1,2610.7,0.19149]
[1726965861061,0.3663,2611.1,2610.7,1.18582552]
[1726965861361,0.3663,2611.1,2610.7,0.19149]
[1726965861963,0.3663,2611.1,2610.8,0.19148]
[1726965862267,0.3663,2611.1,2610.7,1.18581552]
[1726965863854,0.3663,2611.1,2610.7,0.19148]
[1726965864056,0.3663,2611.1,2610.7,1.18581552]
[1726965864252,0.3663,2611.1,2610.7,0.19148]
[1726965864662,0.3663,2611.1,2610.7,1.18581552]
[1726965864852,0.3663,2611.1,2610.6,2.34322552]
[1726965865162,0.55776,2611.1,2610.6,2.34322552]
[1726965865364,0.55776,2611.1,2610.6,1.1574]
[1726965866162,3.2078,2610.9,2610.6,1.1574]
[1726965866758,3.39928,2610.9,2610.6,1.1574]
[1726965866959,0.19148,2610.8,2610.3,0.99433552]
[1726965867161,0.19148,2610.8,2610.3,1.76653552]
[1726965867162,0.4003,2610.7,2610.3,1.76653552]
[1726965867365,0.4003,2610.7,2610.3,0.7722]
[1726965867366,0.7868,2610.7,2610.3,0.7722]
[1726965871962,0.7868,2610.7,2610.3,2.1522]
[1726965872662,0.97829,2610.7,2610.3,2.1522]
[1726965872867,3.2078,2610.6,2610.3,0.7722]
[1726965873164,0.1915,2610.6,2610.3,0.7722]
[1726965873360,3.2078,2610.6,2610.3,0.7722]
[1726965874565,0.97829,2610.7,2610.3,0.7722]
[1726965874761,0.97829,2610.7,2610.3,2.1522]
[1726965874762,0.7868,2610.7,2610.3,2.1522]
[1726965874965,6.28625,2611.2,2610.5,1.38]
[1726965875166,7.07095,2611.2,2610.7,1.57148]
[1726965875362,7.07095,2611.2,2610.6,0.3795]
[1726965875363,8.2595,2611.2,2610.3,1.38813552]
[1726965875569,8.2595,2611.2,2610.4,2.1273]
[1726965875570,0.19147,2611.0,2610.4,2.1273]
[1726965875762,0.19146,2611.1,2610.4,2.1273]
[1726965875967,8.45095,2611.2,2610.7,0.19149]
[1726965876159,0.45,2611.0,2610.8,0.19148]
[1726965876359,0.45,2611.0,2610.9,0.3643]
[1726965883869,0.45,2611.0,2610.6,0.19149]
[1726965884072,0.45,2611.0,2610.7,0.19149]
[1726965885168,3.2078,2610.9,2610.6,0.3652]
[1726965885361,0.64147,2611.0,2610.6,0.3652]
[1726965885565,0.3648,2610.8,2610.6,0.3652]
[1726965888768,0.3674,2610.7,2610.6,0.3652]
[1726965888973,1.7474,2610.7,2610.4,0.99433552]
[1726965889169,3.2078,2610.6,2610.3,0.99433552]
[1726965889473,3.2078,2610.6,2610.2,1.18585552]
[1726965889678,3.2078,2610.6,2610.3,0.99433552]
[1726965890174,3.2078,2610.6,2610.2,0.19152]
[1726965890681,3.2078,2610.6,2610.2,1.18585552]
[1726965890974,3.2078,2610.6,2610.2,0.19152]
[1726965891474,3.2078,2610.6,2610.2,1.18585552]
[1726965891770,3.2078,2610.6,2610.2,0.99433552]
[1726965891771,1.38,2610.5,2610.2,0.99433552]
[1726965891971,1.38,2610.5,2610.1,0.7608]
[1726965892173,3.2078,2610.3,2610.1,0.7608]
[1726965894778,0.3674,2610.4,2610.1,0.7608]
[1726965898081,0.3674,2610.4,2610.1,1.75513552]
[1726965898583,0.3674,2610.4,2610.1,0.7608]
[1726965898782,0.3674,2610.4,2610.1,1.75513552]
[1726965900378,0.3674,2610.4,2610.2,0.99433552]
[1726965902081,0.3674,2610.4,2610.2,1.18585552]
[1726965902983,0.3674,2610.4,2610.2,0.99433552]
[1726965903171,3.5752,2610.7,2610.3,0.19152]
[1726965903374,7.02609,2610.7,2610.3,1.18585552]
[1726965903570,3.81829,2610.7,2610.3,0.99433552]
[1726965904084,0.19149,2610.6,2610.3,0.99433552]
[1726965904384,0.93829,2610.7,2610.3,0.99433552]
[1726965905199,0.93829,2610.7,2610.2,1.68615012]
[1726965905200,0.19149,2610.6,2610.2,0.99433552]
[1726965905489,0.93829,2610.7,2610.1,3.32665552]
[1726965905873,3.2078,2610.5,2610.1,1.94665552]
[1726965906383,0.7468,2610.7,2610.2,0.19152]
[1726965906682,0.7468,2610.7,2610.3,0.19151]
[1726965907078,0.7468,2610.7,2610.2,1.18585552]
[1726965907573,0.93829,2610.7,2610.2,1.18585552]
[1726965907778,0.7468,2610.7,2610.3,1.38]
[1726965907977,3.51446,2611.0,2610.5,1.38]
[1726965908182,3.323,2611.0,2610.6,0.96479]
[1726965908375,3.51446,2611.0,2610.6,1.34059]
[1726965908588,3.51446,2611.0,2610.6,1.1491]
[1726965908778,3.51446,2611.0,2610.6,1.34059]
[1726965908973,0.19147,2610.9,2610.6,1.1491]
[1726965909180,3.51447,2611.0,2610.6,1.1491]
[1726965910582,3.51446,2611.0,2610.6,1.34059]
[1726965910980,0.45,2611.0,2610.6,1.1491]
[1726965911287,0.45,2611.0,2610.7,1.57149]
[1726965911586,0.45,2611.0,2610.7,2.56581552]
[1726965911988,0.45,2611.0,2610.9,0.19147]
[1726965912286,0.45,2611.0,2610.9,4.39360552]
[1726965912587,0.45,2611.0,2610.9,8.22400552]
[1726965913292,0.45,2611.0,2610.9,10.04099568]
[1726965913488,4.77923,2611.5,2611.1,0.19145]
[1726965913691,1.57143,2611.5,2611.2,0.7627]
[1726965913892,1.57143,2611.5,2611.2,0.95415]
[1726965913893,1.38,2611.5,2611.2,0.95415]
[1726965914392,1.38,2611.5,2611.3,0.19144]
[1726965914595,2.49881702,2612.0,2611.4,1.38]
[1726965914791,0.3956,2611.9,2611.5,5.97194959]
[1726965914988,0.3956,2611.9,2611.6,0.19141]
[1726965915191,0.3956,2611.9,2611.7,0.7392]
[1726965915586,3.5871,2612.1,2611.7,0.7392]
[1726965915895,0.3644,2612.2,2611.8,0.1914]
[1726965916092,0.3644,2612.2,2611.7,3.12214959]
[1726965916297,0.3644,2612.2,2611.8,0.1914]
[1726965916683,0.3644,2612.2,2611.9,0.3932]
[1726965916891,4.5878,2612.0,2611.7,0.7392]
[1726965917796,4.5878,2612.0,2611.7,0.3766]
[1726965917797,4.9808,2612.0,2611.7,0.3766]
[1726965918194,1.38,2611.8,2611.6,0.3932]
[1726965918588,4.9808,2612.0,2611.6,0.3932]
[1726965920187,3.2078,2612.0,2611.7,0.19141]
[1726965920388,3.2078,2612.0,2611.8,0.3732]
[1726965920594,3.2078,2612.0,2611.9,0.1914]
[1726965920800,3.2078,2612.0,2611.8,0.5646]
[1726965920999,3.2078,2612.0,2611.9,0.1914]
[1726965921297,3.2078,2612.0,2611.8,0.5646]
[1726965923094,0.3644,2612.2,2611.8,0.5646]
[1726965923299,3.5722,2612.2,2611.8,0.5646]
[1726965924496,3.5722,2612.2,2612.0,0.19139]
[1726965924707,3.2078,2612.2,2612.0,0.19139]
[1726965924895,3.2078,2612.2,2612.1,0.3848]
[1726965925196,0.7839,2612.4,2612.1,1.7648]
[1726965925402,3.2078,2612.7,2612.3,1.57137]
[1726965925606,1.1617,2613.0,2612.6,0.19134]
[1726965925906,1.1617,2613.0,2612.7,0.3848]
[1726965926099,1.35302,2613.0,2612.7,0.3848]
[1726965926901,0.19133,2612.9,2612.7,0.3848]
[1726965927099,0.19133,2612.9,2612.5,0.3927]
[1726965927706,1.35302,2613.0,2612.5,0.3927]
[1726965927899,0.19133,2612.9,2612.5,0.3927]
[1726965928104,3.2078,2612.9,2611.9,2.872]
[1726965928305,3.2078,2612.9,2612.3,0.3778]
[1726965928501,3.39913,2612.9,2612.3,0.93967]
[1726965930104,3.39913,2612.9,2612.3,0.7483]
[1726965930507,3.39913,2612.9,2612.3,0.93966]
[1726965931693,3.39913,2612.9,2612.4,0.19136]
[1726965931694,3.2078,2612.9,2612.4,0.19136]
[1726965932403,3.39913,2612.9,2612.3,0.93967]
[1726965932603,3.2078,2612.9,2612.4,0.19136]
[1726965932901,3.39913,2612.9,2612.3,0.93966]
[1726965933107,3.2078,2612.5,2612.4,0.19136]
[1726965933607,7.55082,2613.0,2612.4,0.19136]
[1726965933904,3.2078,2612.7,2612.4,0.19136]
[1726965934107,0.3997,2612.6,2612.3,0.7483]
[1726965934701,0.3997,2612.6,2612.3,0.93967]
[1726965934901,0.3997,2612.6,2612.4,0.19136]
[1726965936209,0.3997,2612.6,2612.3,0.7483]
[1726965936996,0.3997,2612.6,2612.4,0.19136]
[1726965938801,4.17602,2613.0,2612.5,0.19135]
[1726965938998,0.377,2612.9,2612.3,3.7383]
[1726965939201,0.377,2612.9,2612.6,0.19134]
[1726965939409,0.377,2612.9,2612.7,0.3968]
[1726965940206,0.377,2612.9,2612.8,0.19133]
[1726965940510,0.377,2612.9,2612.8,0.56613]
[1726965942006,0.377,2612.9,2612.8,0.3748]
[1726965942203,0.377,2612.9,2612.7,0.3968]
[1726965944908,0.377,2612.9,2612.7,0.58814]
[1726965945599,0.4007,2613.0,2612.7,3.3868]
[1726965945806,0.4007,2613.0,2612.9,0.19132]
[1726965946005,0.4007,2613.0,2612.9,1.57132]
[1726965946406,0.4007,2613.0,2612.9,1.38]
[1726965946607,0.4007,2613.0,2612.9,1.57132]
[1726965947999,0.4007,2613.0,2612.8,0.3668]
[1726965948000,0.4007,2613.0,2612.8,0.19133]
[1726965948203,0.4007,2613.0,2612.7,0.58814]
[1726965948916,0.4007,2613.0,2612.8,0.19133]
[1726965951213,0.4007,2613.0,2612.7,0.3968]
[1726965951415,0.4007,2613.0,2612.8,0.19133]
[1726965955619,0.4007,2613.0,2612.7,0.58814]
[1726965955917,0.4007,2613.0,2612.7,0.3968]
[1726965956413,0.4007,2613.0,2612.8,0.19133]
[1726965959413,0.4007,2613.0,2612.7,0.58814]
[1726965960120,0.4007,2613.0,2612.8,0.19133]
[1726965960508,0.4007,2613.0,2612.7,0.58814]
[1726965963816,0.4007,2613.0,2612.8,0.19133]
[1726965964412,0.4007,2613.0,2612.7,0.58813]
[1726965965321,0.4007,2613.0,2612.7,0.3968]
[1726965965526,0.4007,2613.0,2612.4,0.3969]
[1726965965527,3.2078,2612.8,2612.4,0.3969]
[1726965965714,0.58124,2612.7,2612.4,0.3969]
[1726965965915,0.58124,2612.7,2612.4,0.58826]
[1726965965916,0.3899,2612.7,2612.4,0.58826]
[1726965966422,0.3899,2612.7,2612.4,0.3969]
[1726965968020,0.3899,2612.7,2612.4,1.7769]
[1726965968413,0.3899,2612.7,2612.4,2.77396386]
[1726965969954,0.3899,2612.7,2612.6,1.38]
[1726965970230,0.4007,2613.0,2612.6,1.38]
[1726965970431,0.3844,2613.1,2612.8,1.38]
[1726965970826,0.3844,2613.1,2612.8,2.56839386]
[1726965971226,0.3844,2613.1,2612.9,0.382]
[1726965972334,0.3844,2613.1,2612.9,0.57332]
[1726965972731,0.3844,2613.1,2612.9,1.57038386]
[1726965972935,0.3844,2613.1,2612.9,0.382]
[1726965973124,0.3844,2613.1,2612.9,0.57332]
[1726965973325,0.3844,2613.1,2612.9,0.382]
[1726965979241,2.48562643,2613.2,2613.0,1.38]
[1726965979543,0.47805,2614.4,2613.5,0.19128]
[1726965979544,2.48562643,2613.7,2613.5,0.19128]
[1726965979779,2.48562643,2613.7,2613.1,4.80294394]
[1726965979780,2.48562643,2613.8,2613.6,1.7742]
[1726965980035,2.48562643,2613.9,2613.8,0.19126]
[1726965980235,2.48562643,2614.0,2613.8,0.19126]
[1726965980435,2.48562643,2614.1,2613.9,1.38]
[1726965980939,2.48562643,2614.1,2614.0,0.3942]
[1726965981638,0.19124,2614.2,2613.8,1.38]
[1726965981845,0.19124,2614.2,2613.8,1.7742]
[1726965982044,0.19124,2614.2,2613.8,0.3942]
[1726965982245,3.9707,2614.3,2613.9,0.19125]
[1726965982543,0.4,2614.3,2614.1,0.19124]
[1726965982751,0.5824,2614.6,2614.2,0.7368]
[1726965983042,3.5916,2614.6,2614.2,1.1008]
[1726965983233,2.48562643,2615.1,2614.2,4.0908]
[1726965983437,0.19116,2615.1,2614.6,0.1912]
[1726965983732,3.2078,2615.2,2614.5,3.18121]
[1726965983941,3.2078,2615.2,2614.7,0.19119]
[1726965984137,3.39896,2615.2,2614.6,0.1912]
[1726965984334,3.39896,2615.2,2614.5,2.99]
[1726965984335,0.3838,2615.3,2614.8,0.19118]
[1726965984547,3.5916,2615.3,2614.8,0.58688]
[1726965984738,3.78275,2615.3,2614.8,0.95408]
[1726965985039,3.5916,2615.3,2614.8,0.95408]
[1726965985639,3.5916,2615.3,2614.8,0.7629]
[1726965986549,0.19116,2615.2,2614.8,0.7629]
[1726965986741,0.19115,2615.3,2614.8,0.7629]
[1726965987045,4.16815,2615.3,2614.8,0.7629]
[1726965987843,3.977,2615.3,2614.8,1.1286]
[1726965988050,3.2078,2615.2,2614.8,1.31978]
[1726965988650,3.2078,2615.2,2614.8,1.1286]
[1726965988842,2.48562643,2615.1,2614.8,1.31978]
[1726965989057,2.48562643,2615.2,2614.9,2.99]
[1726965989250,3.25482643,2615.3,2614.9,2.99]
[1726965989437,0.7692,2615.3,2614.9,2.99]
[1726965989640,0.7692,2615.3,2615.0,0.19117]
[1726965989835,0.7692,2615.3,2614.8,4.3364]
[1726965990039,0.7692,2615.3,2614.8,1.1286]
[1726965990040,3.25482643,2615.3,2614.8,1.1286]
[1726965990239,0.7692,2615.3,2614.9,0.19117]
[1726965990539,0.7692,2615.3,2614.8,1.31978]
[1726965991050,0.7692,2615.3,2614.9,0.19118]
[1726965991251,0.7692,2615.3,2614.8,1.31978]
[1726965991947,0.7692,2615.3,2614.9,0.19118]
[1726965992348,0.7692,2615.3,2614.8,4.52758]
[1726965993850,0.7692,2615.3,2614.9,0.19118]
[1726965994152,0.7692,2615.3,2614.8,4.3364]
[1726965994452,0.7692,2615.3,2614.8,0.7629]
[1726965994453,0.19117,2615.1,2614.8,0.7629]
[1726965994844,3.39896,2615.2,2614.8,0.7629]
[1726965995447,0.96035,2615.3,2614.8,0.7629]
[1726965995654,0.7692,2615.3,2614.8,0.7629]
[1726965995853,0.96035,2615.3,2614.8,0.7629]
[1726965996356,3.2078,2615.2,2614.8,0.7629]
[1726965996547,3.39896,2615.2,2614.8,0.7629]
[1726965997344,3.2078,2615.2,2614.8,0.7629]
[1726965997857,0.7692,2615.3,2614.5,3.5859]
[1726965997858,3.2078,2614.9,2614.5,0.3781]
[1726965998157,0.7833,2614.8,2614.5,0.77]
[1726965998869,3.2078,2614.9,2614.8,0.19119]
[1726965999251,3.2078,2614.9,2614.8,4.01519]
[1726965999555,3.2078,2615.2,2614.8,4.01519]
[1726965999759,3.2078,2615.2,2615.1,0.19116]
[1726966000055,3.2078,2615.2,2615.1,3.824]
[1726966000253,3.2078,2615.2,2615.0,0.55797]
[1726966000751,3.2078,2615.2,2615.0,0.3668]
[1726966000953,3.2078,2615.2,2614.9,0.7892]
[1726966001349,3.578,2615.2,2614.9,0.7892]
[1726966003050,3.578,2615.2,2614.6,0.3668]
[1726966003245,3.578,2615.2,2614.7,0.3816]
[1726966003450,3.76916,2615.2,2614.7,0.3816]
[1726966003950,3.578,2615.2,2614.7,0.3816]
[1726966006059,3.578,2615.2,2614.7,0.57279]
[1726966007158,3.578,2615.2,2614.8,2.99]
[1726966007457,3.578,2615.2,2614.9,0.19117]
[1726966007864,3.578,2615.2,2614.8,3.18118]
[1726966008067,3.578,2615.2,2614.8,2.99]
[1726966010250,3.578,2615.2,2614.8,3.18118]
[1726966010951,0.396,2615.5,2615.1,2.99]
[1726966011158,0.396,2615.5,2615.2,0.7942]
[1726966011356,0.396,2615.5,2615.2,1.1764]
[1726966012858,0.396,2615.5,2615.2,1.36756]
[1726966013761,0.396,2615.5,2615.2,1.1764]
[1726966013958,3.2078,2615.3,2614.8,6.1978]
[1726966014258,3.2078,2615.3,2615.0,0.19117]
[1726966014459,0.384,2615.2,2615.0,0.19117]
[1726966014660,0.384,2615.2,2614.9,0.3718]
[1726966014867,0.384,2615.2,2614.9,0.56298]
[1726966015255,0.57516,2615.2,2614.9,0.3718]
[1726966015459,3.2078,2615.0,2614.7,0.19119]
[1726966015765,0.3996,2614.9,2614.7,4.38699]
[1726966015965,0.3996,2614.9,2614.7,0.3718]
[1726966016262,0.3996,2614.9,2614.8,4.01519]
[1726966018568,0.3996,2614.9,2614.7,0.3718]
[1726966018766,0.3926,2614.8,2614.7,4.38699]
[1726966019067,0.3926,2614.8,2614.7,0.56299]
[1726966019267,0.3926,2614.8,2614.7,4.38779]
[1726966019758,0.3926,2614.8,2614.7,4.1966]
[1726966020074,0.3926,2614.8,2614.7,3.8248]
[1726966020459,0.3926,2614.8,2614.6,3.9325]
[1726966020770,0.3926,2614.8,2614.6,7.7573]